bitfinex/quotes_SOLUSD_20250622
["timestamp","ask_amount","ask_price","bid_price","bid_amount"]
[1750623644393,55.22,127.18,127.06,18.64964886]
[1750623644698,0.71,127.17,127.04,18.64964886]
[1750623644903,0.71,127.17,127.04,19.39964886]
[1750623645386,0.71,127.22,127.06,18.64964886]
[1750623645714,64.20102207,127.26,127.04,51.00373811]
[1750623645715,123.267,127.25,127.11,90.61455685]
[1750623646025,123.267,127.25,127.13,18.64964886]
[1750623646615,51.1,127.26,127.13,18.64964886]
[1750623646616,123.267,127.24,127.13,18.64964886]
[1750623646816,123.267,127.24,127.05,18.64964886]
[1750623647025,0.71,127.22,127.07,18.64964886]
[1750623647202,55.2,127.21,127.07,18.64964886]
[1750623647400,123.267,127.2,127.07,18.64964886]
[1750623648304,0.71,127.19,127.07,18.64964886]
[1750623648739,123.267,127.18,127.03,0.5834]
[1750623649034,123.267,127.17,127.03,0.5834]
[1750623649207,123.267,127.17,127.04,18.64964886]
[1750623649406,123.267,127.17,127.04,19.39964886]
[1750623649621,0.71,127.25,127.05,0.75]
[1750623649808,178.447,127.24,127.06,18.64964886]
[1750623650246,123.267,127.23,127.08,18.64964886]
[1750623650407,123.267,127.22,127.08,18.64964886]
[1750623651007,123.267,127.21,127.08,18.64964886]
[1750623651207,123.267,127.2,127.08,18.64964886]
[1750623651512,55.89,127.25,127.08,18.64964886]
[1750623652118,0.71,127.23,127.08,18.64964886]
[1750623652325,6.34201883,127.23,127.08,18.64964886]
[1750623652532,0.71,127.23,127.08,18.64964886]
[1750623652708,51.1,127.26,127.1,51.00373811]
[1750623652903,51.1,127.26,127.12,18.64964886]
[1750623653700,23.67,127.25,127.12,18.64964886]
[1750623653904,51.1,127.26,127.12,18.64964886]
[1750623654128,123.267,127.25,127.12,18.64964886]
[1750623654338,123.267,127.25,127.14,18.64964886]
[1750623654517,123.267,127.25,127.14,19.23304886]
[1750623654834,123.267,127.25,127.16,18.64964886]
[1750623655949,123.267,127.25,127.18,18.64964886]
[1750623657714,55.1,127.28,127.15,18.64964886]
[1750623658844,55.1,127.28,127.06,7.87014759]
[1750623658845,23.67,127.26,127.07,19.23887688]
[1750623659138,0.71,127.25,127.07,19.23887688]
[1750623659326,1.5934,127.25,127.07,0.5834]
[1750623659523,55.81,127.24,127.07,0.5834]
[1750623659723,29.30640488,127.23,127.07,0.5834]
[1750623659911,0.71,127.22,127.07,0.5834]
[1750623660306,0.71,127.22,127.1,18.64964886]
[1750623660545,1.5934,127.25,127.02,18.64964886]
[1750623660546,0.71,127.2,127.02,18.64964886]
[1750623660843,0.71,127.19,127.01,1.3334]
[1750623661138,14.81823984,127.24,127.09,18.64964886]
[1750623661338,55.08,127.23,127.09,18.64964886]
[1750623661523,0.71,127.22,127.09,18.64964886]
[1750623661721,0.71,127.22,127.04,18.64964886]
[1750623661926,0.71,127.22,127.01,0.5834]
[1750623661927,0.71,127.2,127.01,0.5834]
[1750623662231,24.38,127.18,127.01,0.5834]
[1750623662420,0.71,127.17,127.02,18.64964886]
[1750623662626,0.71,127.17,127.02,51.75373811]
[1750623662828,106.85,127.22,127.06,18.64964886]
[1750623663014,5.62803973,127.21,127.06,18.64964886]
[1750623663218,0.71,127.2,127.06,18.64964886]
[1750623663922,0.71,127.2,127.08,18.64964886]
[1750623664253,106.12,127.22,127.08,18.64964886]
[1750623664441,8.42470674,127.23,127.1,51.00373811]
[1750623664618,55.77,127.3,127.14,19.39964886]
[1750623664933,8.424706,127.25,127.14,19.39964886]
[1750623665638,8.424706,127.25,127.14,51.75373811]
[1750623665821,8.424706,127.25,127.14,19.39964886]
[1750623666137,0.71,127.3,127.14,19.39964886]
[1750623666345,8.424706,127.29,127.14,19.39964886]
[1750623667241,0.71,127.27,127.09,19.39964886]
[1750623667440,24.38,127.27,127.09,19.39964886]
[1750623667751,6.34379361,127.27,127.1,0.75]
[1750623668050,6.34379361,127.27,127.08,19.23887688]
[1750623668051,0.71,127.27,127.13,18.64964886]
[1750623669420,23.67,127.25,127.13,18.64964886]
[1750623669724,37.1723238,127.26,127.13,18.64964886]
[1750623670541,13.5023238,127.26,127.13,18.64964886]
[1750623670743,19.35964886,127.24,127.08,0.5834]
[1750623670953,0.71,127.22,127.07,0.75]
[1750623671160,55.0,127.21,127.07,0.75]
[1750623671361,55.0,127.21,127.08,18.64964886]
[1750623671520,5.64101234,127.2,127.08,18.64964886]
[1750623671831,24.38,127.19,127.03,0.5834]
[1750623672034,24.38,127.19,127.02,0.75]
[1750623672035,0.71,127.16,127.02,0.75]
[1750623672431,0.71,127.16,127.03,18.64964886]
[1750623673047,0.71,127.16,127.02,0.75]
[1750623673250,55.69,127.16,127.02,0.75]
[1750623673434,55.69,127.16,127.03,18.64964886]
[1750623673832,0.71,127.22,127.04,18.64964886]
[1750623674049,0.69,127.2,127.02,18.64964886]
[1750623674224,0.69,127.2,127.04,18.64964886]
[1750623674225,27.51788662,127.19,127.04,18.64964886]
[1750623674638,27.51788662,127.19,127.04,0.74]
[1750623674841,27.51788662,127.19,127.06,51.74373811]
[1750623675031,7.86225332,127.19,127.08,18.64964886]
[1750623675229,7.86225332,127.19,127.1,18.64964886]
[1750623675460,7.8603993,127.22,127.1,18.64964886]
[1750623675625,7.8603993,127.22,127.12,18.64964886]
[1750623676332,7.85854616,127.25,127.12,0.74]
[1750623676542,27.50491158,127.25,127.12,0.74]
[1750623676741,7.85854616,127.25,127.15,18.64964886]
[1750623676961,7.85731122,127.27,127.15,18.64964886]
[1750623677143,7.85731122,127.27,127.17,18.64964886]
[1750623678243,0.69,127.29,127.13,33.74288825]
[1750623678440,0.69,127.29,127.14,18.64964886]
[1750623678843,0.69,127.29,127.15,0.74]
[1750623679265,25.2956143,127.3,127.15,0.74]
[1750623679751,25.2956143,127.3,127.15,34.47313207]
[1750623679932,25.9856143,127.3,127.16,18.64964886]
[1750623680278,73.11837156,127.3,127.16,18.64964886]
[1750623680555,5.65647251,127.29,127.16,18.64964886]
[1750623680942,123.957,127.28,127.16,18.64964886]
[1750623681133,5.65664405,127.27,127.16,18.64964886]
[1750623681330,5.6562696,127.27,127.16,18.64964886]
[1750623681757,123.267,127.26,127.15,33.73313207]
[1750623681934,5.6562696,127.25,127.15,33.73313207]
[1750623682131,27.50923523,127.23,127.15,33.73313207]
[1750623682335,27.50923523,127.23,127.16,18.64964886]
[1750623682537,7.85978149,127.23,127.16,18.64964886]
[1750623682797,27.50923523,127.23,127.16,18.64964886]
[1750623683071,7.85978149,127.23,127.16,18.64964886]
[1750623683381,7.85854616,127.25,127.16,18.64964886]
[1750623683753,28.19491158,127.25,127.15,33.73313207]
[1750623683940,0.69,127.24,127.15,33.73313207]
[1750623684158,1.5214,127.22,127.15,33.73313207]
[1750623684357,83.06356024,127.21,127.15,33.73313207]
[1750623684551,0.69,127.19,127.15,33.73313207]
[1750623684979,5.65707473,127.2,127.15,33.73313207]
[1750623685282,0.69,127.19,127.15,33.73313207]
[1750623685495,5.65707473,127.2,127.15,33.73313207]
[1750623685658,7.86101721,127.21,127.15,33.73313207]
[1750623685854,7.86101721,127.21,127.16,18.64964886]
[1750623686187,7.861018,127.2,127.15,33.73313207]
[1750623686494,15.72325661,127.2,127.15,33.73313207]
[1750623686660,0.69,127.19,127.15,33.73313207]
[1750623687050,35.37734466,127.2,127.15,33.73313207]
[1750623687467,36.06734466,127.2,127.15,33.73313207]
[1750623688083,35.37734466,127.2,127.15,33.73313207]
[1750623688485,36.06734466,127.2,127.15,33.73313207]
[1750623688780,123.957,127.19,127.15,33.73313207]
[1750623688973,123.267,127.19,127.15,33.73313207]
[1750623689557,1.5214,127.22,127.16,18.64964886]
[1750623689896,7.85731122,127.27,127.18,18.64964886]
[1750623690061,7.85685555,127.28,127.18,18.64964886]
[1750623690372,6.2303,127.29,127.2,18.64964886]
[1750623690555,27.49194878,127.31,127.2,18.64964886]
[1750623690758,27.49194878,127.31,127.18,0.74]
[1750623691162,28.18194878,127.31,127.18,0.74]
[1750623691363,0.69,127.29,127.16,18.64964886]
[1750623691579,42.31964886,127.28,127.15,33.73313207]
[1750623691774,1.6002,127.26,127.15,33.73313207]
[1750623691981,7.26713447,127.26,127.15,33.73313207]
[1750623692289,27.50491158,127.25,127.15,33.73313207]
[1750623692685,66.79764242,127.25,127.15,33.73313207]
[1750623693569,0.69,127.24,127.15,33.73313207]
[1750623693770,0.69,127.24,127.1,18.64964886]
[1750623694375,26.0,127.2,127.1,18.64964886]
[1750623695162,25.5,127.2,127.1,18.64964886]
[1750623695358,27.50923523,127.23,127.1,18.64964886]
[1750623695778,27.50923523,127.23,127.12,18.64964886]
[1750623696486,27.00923523,127.23,127.12,18.64964886]
[1750623696689,7.35978149,127.23,127.12,18.64964886]
[1750623697071,26.0,127.2,127.12,18.64964886]
[1750623697806,7.85854616,127.25,127.14,18.64964886]
[1750623698089,26.0,127.22,127.14,18.64964886]
[1750623698791,7.07633859,127.28,127.18,18.64964886]
[1750623698991,7.07633859,127.28,127.22,18.64964886]
[1750623699199,14.93332307,127.28,127.22,18.64964886]
[1750623699377,14.93332307,127.28,127.16,0.74]
[1750623699696,26.0,127.25,127.17,18.64964886]
[1750623699878,26.0,127.25,127.16,0.74]
[1750623700278,26.0,127.25,127.17,18.64964886]
[1750623700472,35.26505782,127.28,127.17,18.64964886]
[1750623700699,14.93332307,127.28,127.17,18.64964886]
[1750623700879,26.0,127.25,127.17,18.64964886]
[1750623701597,26.0,127.25,127.12,18.64964886]
[1750623702498,26.0,127.25,127.11,39.16484233]
[1750623702499,26.0,127.2,127.11,39.16484233]
[1750623703002,26.0,127.2,127.12,18.64964886]
[1750623703203,33.86176451,127.2,127.12,18.64964886]
[1750623703383,53.51585256,127.2,127.11,38.42484233]
[1750623703581,26.0,127.16,127.06,0.74]
[1750623703775,26.0,127.16,127.07,18.64964886]
[1750623703974,26.0,127.16,127.06,0.74]
[1750623704186,26.0,127.17,127.07,18.64964886]
[1750623704495,26.0,127.16,127.07,18.64964886]
[1750623704894,33.86225332,127.19,127.07,18.64964886]
[1750623705093,7.86163522,127.2,127.06,0.71]
[1750623705397,26.0,127.17,127.07,18.64964886]
[1750623705610,7.86163522,127.2,127.07,18.64964886]
[1750623705905,26.0,127.17,127.07,18.64964886]
[1750623706992,26.0,127.13,127.07,18.64964886]
[1750623707576,26.0,127.13,127.01,29.65978347]
[1750623707783,26.0,127.09,127.01,28.94978347]
[1750623708377,26.0,127.09,126.96,0.71]
[1750623708604,0.7,127.08,126.96,0.71]
[1750623709019,26.0,127.04,126.93,28.19065787]
[1750623709693,2.2705,127.02,126.93,28.19065787]
[1750623710273,66.8922641,127.07,126.94,18.64964886]
[1750623710274,8.56967813,127.07,126.94,18.64964886]
[1750623710501,8.56967813,127.07,126.96,18.64964886]
[1750623710502,26.0,127.04,126.96,18.64964886]
[1750623710806,26.0,127.04,126.95,0.71]
[1750623710994,26.0,127.04,126.94,18.64964886]
[1750623710995,7.87215618,127.03,126.94,18.64964886]
[1750623711496,26.0,127.04,126.94,19.35964886]
[1750623711699,26.0,127.04,126.94,11.85964886]
[1750623711882,26.0,127.04,126.93,28.19065787]
[1750623712077,26.7,127.04,126.93,28.19065787]
[1750623712809,26.7,127.04,126.9,0.71]
[1750623713001,27.55254663,127.03,126.9,0.71]
[1750623713687,27.55254663,127.03,126.91,18.64964886]
[1750623714710,7.87215618,127.03,126.91,18.64964886]
[1750623714902,7.87129849,127.05,126.91,0.71]
[1750623715214,26.0,127.03,126.91,0.71]
[1750623715422,123.267,127.06,126.93,0.71]
[1750623715598,7.9964,127.08,126.96,51.75437899]
[1750623715802,25.97598861,127.1,126.98,18.64964886]
[1750623716110,26.0,127.07,126.98,18.64964886]
[1750623716295,7.86793036,127.1,126.98,18.64964886]
[1750623717101,26.0,127.07,126.99,18.64964886]
[1750623717597,7.86726455,127.11,126.99,18.64964886]
[1750623718708,31.53726455,127.11,126.99,18.64964886]
[1750623718921,26.0,127.08,126.99,18.64964886]
[1750623719225,11.12780461,127.13,126.9,32.39473013]
[1750623719226,26.0,127.04,126.9,32.39473013]
[1750623719521,26.0,127.04,126.94,18.64964886]
[1750623719733,26.0,127.06,126.98,18.64964886]
[1750623719888,7.86658275,127.12,127.0,18.64964886]
[1750623720084,26.0,127.09,127.0,18.64964886]
[1750623720607,26.0,127.09,126.9,0.71]
[1750623720787,0.7,127.11,126.96,0.71]
[1750623720991,27.53737214,127.1,126.97,0.71]
[1750623721222,26.0,127.07,126.97,0.71]
[1750623721400,26.0,127.07,126.98,18.64964886]
[1750623721714,7.86782061,127.1,126.98,0.71]
[1750623722016,26.0,127.07,126.99,18.64964886]
[1750623722514,26.0,127.07,126.93,0.71]
[1750623722745,26.0,127.07,126.89,0.5834]
[1750623722936,26.0,127.07,126.81,28.21733462]
[1750623722937,26.0,127.03,126.9,0.71]
[1750623723095,26.0,127.02,126.9,0.71]
[1750623723294,33.886,127.02,126.9,0.71]
[1750623723523,33.886,127.02,126.91,18.64964886]
[1750623723722,33.886,127.02,126.9,0.71]
[1750623723898,26.0,127.02,126.9,0.71]
[1750623724102,7.86843968,127.09,126.95,18.64964886]
[1750623724527,26.0,127.06,126.95,18.64964886]
[1750623725019,7.86967813,127.07,126.95,18.64964886]
[1750623725229,26.0,127.04,126.95,18.64964886]
[1750623725428,7.86967813,127.07,126.95,18.64964886]
[1750623725721,26.0,127.03,126.95,18.64964886]
[1750623726298,26.0,127.04,126.95,18.64964886]
[1750623726794,26.0,127.04,126.95,0.71]
[1750623727009,26.0,127.04,126.94,18.64964886]
[1750623727220,26.0,127.0,126.92,18.64964886]
[1750623728438,26.0,127.0,126.91,51.04437899]
[1750623728598,123.267,127.03,126.95,19.35964886]
[1750623728794,7.86905886,127.08,126.95,19.35964886]
[1750623729107,26.0,127.0,126.95,19.35964886]
[1750623729306,26.0,127.0,126.97,19.35964886]
[1750623729536,26.0,127.04,126.97,19.35964886]
[1750623729822,123.267,127.07,126.97,19.35964886]
[1750623730029,26.0,127.04,126.97,19.35964886]
[1750623730695,26.0,127.04,126.88,18.65547688]
[1750623730924,26.0,127.04,126.93,0.71]
[1750623731103,26.0,127.03,126.94,18.64964886]
[1750623731739,26.0,127.03,126.95,0.71]
[1750623732021,33.8692619,127.08,126.96,18.64964886]
[1750623733021,33.8692619,127.08,126.98,18.64964886]
[1750623734024,7.86658275,127.12,126.98,0.74]
[1750623734198,14.63006523,127.15,127.03,18.64964886]
[1750623734399,6.76532994,127.15,127.05,18.64964886]
[1750623734704,35.03193267,127.15,126.99,0.74]
[1750623734916,0.74,127.14,127.0,18.64964886]
[1750623735119,26.0,127.12,127.0,18.64964886]
[1750623735422,26.0,127.08,127.0,18.64964886]
[1750623737332,0.74,127.11,127.0,18.64964886]
[1750623737541,1.5164,127.14,127.0,0.74]
[1750623737743,6.76532994,127.15,127.03,32.71243515]
[1750623738041,0.74,127.2,127.08,18.64964886]
[1750623738210,7.8603993,127.22,127.1,18.64964886]
[1750623738410,33.89042686,127.23,127.12,18.64964886]
[1750623738607,26.0,127.2,127.08,18.64964886]
[1750623739431,26.0,127.16,127.08,18.64964886]
[1750623739817,26.0,127.16,127.04,18.64964886]
[1750623740219,0.74,127.15,127.04,18.64964886]
[1750623740542,26.0,127.11,126.97,28.42349856]
[1750623740842,26.0,127.1,126.97,28.42349856]
[1750623741221,26.74,127.1,126.97,28.42349856]
[1750623741432,26.0,127.06,126.97,28.42349856]
[1750623742132,26.0,127.06,126.97,27.68349856]
[1750623742316,26.0,127.06,126.98,18.64964886]
[1750623743043,26.0,127.06,126.97,27.68349856]
[1750623743547,26.0,127.02,126.97,27.68349856]
[1750623743749,26.0,127.0,126.97,27.68349856]
[1750623743919,26.0,127.0,126.89,69.75547688]
[1750623744117,26.0,127.0,126.88,0.74]
[1750623744529,26.0,127.0,126.89,18.64964886]
[1750623744752,0.74,127.02,126.89,18.64964886]
[1750623745044,32.76727442,126.95,126.91,18.64964886]
[1750623745233,32.76727442,126.97,126.93,18.64964886]
[1750623745546,32.76727442,126.98,126.94,19.38964886]
[1750623745724,32.76727442,126.98,126.93,18.64964886]
[1750623745926,32.76727442,126.94,126.93,18.64964886]
[1750623746239,32.76727442,126.94,126.85,26.0]
[1750623746240,32.76727442,126.94,126.89,18.64964886]
[1750623746539,32.76727442,126.94,126.85,58.76727442]
[1750623746540,32.76727442,126.9,126.87,18.64964886]
[1750623746743,32.76727442,126.91,126.89,18.64964886]
[1750623746928,58.76727442,126.99,126.89,18.64964886]
[1750623747129,32.76727442,126.95,126.91,0.74]
[1750623747474,236.32373376,127.08,126.94,51.41692328]
[1750623747475,39.82547442,127.08,126.94,51.41692328]
[1750623747621,39.82547442,127.08,126.98,18.64964886]
[1750623747622,32.76727442,127.02,126.98,18.64964886]
[1750623747949,7.86658275,127.12,127.01,19.38964886]
[1750623748158,32.76727442,127.05,127.01,19.38964886]
[1750623748652,32.76727442,127.03,127.01,19.38964886]
[1750623748836,32.76727442,127.02,126.98,19.38964886]
[1750623749033,32.76727442,127.02,126.98,0.74]
[1750623749359,32.76727442,127.0,126.99,18.64964886]
[1750623749646,32.76727442,127.02,126.99,18.64964886]
[1750623749854,32.76727442,127.08,126.99,18.64964886]
[1750623750062,32.76727442,127.08,126.98,18.64964886]
[1750623750352,32.76727442,127.02,126.98,19.38964886]
[1750623750850,32.76727442,127.02,126.98,52.15692328]
[1750623751059,32.76727442,127.05,127.0,51.41692328]
[1750623751266,6.3787,127.14,127.05,18.64964886]
[1750623751434,32.76727442,127.09,127.05,18.64964886]
[1750623751658,32.76727442,127.06,127.05,18.64964886]
[1750623751859,32.76727442,127.06,127.01,18.64964886]
[1750623752184,32.76727442,127.03,127.01,18.64964886]
[1750623752559,32.76727442,127.08,127.03,18.64964886]
[1750623752886,32.76727442,127.09,127.05,18.64964886]
[1750623753094,32.76727442,127.17,127.07,52.15692328]
[1750623753249,32.76727442,127.12,127.09,18.64964886]
[1750623753451,32.76727442,127.1,127.09,18.64964886]
[1750623753648,32.76727442,127.1,127.04,18.64964886]
[1750623753864,32.76727442,127.05,127.04,18.64964886]
[1750623754081,32.76727442,127.05,127.02,18.64964886]
[1750623754277,32.76727442,127.05,127.02,43.61244033]
[1750623754775,32.76727442,127.17,127.05,18.64964886]
[1750623755078,32.76727442,127.08,127.05,19.38964886]
[1750623755454,32.76727442,127.09,127.05,52.15692328]
[1750623755654,32.76727442,127.17,127.05,52.15692328]
[1750623755970,26.0,127.15,127.05,19.38964886]
[1750623756150,32.76727442,127.12,127.07,32.76727442]
[1750623756350,32.76727442,127.09,127.05,0.74]
[1750623756585,32.76727442,127.09,127.06,18.64964886]
[1750623756754,32.76727442,127.13,127.08,51.41692328]
[1750623757080,6.3924,127.24,127.13,18.64964886]
[1750623757253,32.76727442,127.16,127.12,0.74]
[1750623757458,6.3924,127.24,127.09,26.0]
[1750623757459,32.76727442,127.18,127.15,18.64964886]
[1750623757761,32.76727442,127.17,127.15,19.38964886]
[1750623757982,32.76727442,127.16,127.13,18.64964886]
[1750623758187,6.3924,127.24,127.13,18.64964886]
[1750623758390,32.76727442,127.15,127.08,1.5753]
[1750623758676,32.76727442,127.14,127.11,18.64964886]
[1750623758882,32.76727442,127.12,127.05,0.5834]
[1750623759059,32.76727442,127.1,127.06,0.74]
[1750623759272,32.76727442,127.11,127.08,18.64964886]
[1750623759875,32.76727442,127.1,127.06,51.41692328]
[1750623760191,32.76727442,127.11,127.06,52.15692328]
[1750623760402,32.76727442,127.13,127.08,32.76727442]
[1750623760711,0.74,127.2,127.09,18.64964886]
[1750623760999,32.76727442,127.17,127.14,18.64964886]
[1750623761167,33.50727442,127.26,127.14,51.41692328]
[1750623761168,32.76727442,127.19,127.14,51.41692328]
[1750623761367,32.76727442,127.16,127.11,18.64964886]
[1750623761698,14.25190246,127.24,127.08,0.74]
[1750623761699,32.76727442,127.13,127.08,0.74]
[1750623761886,32.76727442,127.12,127.09,18.64964886]
[1750623762185,32.76727442,127.1,127.09,18.64964886]
[1750623762388,32.76727442,127.11,127.07,18.64964886]
[1750623762689,32.76727442,127.1,127.07,18.64964886]
[1750623763015,26.0,127.14,127.03,29.00581361]
[1750623763016,32.76727442,127.08,127.04,18.64964886]
[1750623763158,32.76727442,127.08,127.04,52.15692328]
[1750623763357,32.76727442,127.09,127.04,52.15692328]
[1750623763799,32.76727442,127.08,127.04,52.15692328]
[1750623764098,0.74,127.19,127.04,19.38964886]
[1750623764287,32.76727442,127.13,127.09,18.64964886]
[1750623764492,32.76727442,127.17,127.05,26.0]
[1750623764691,32.76727442,127.17,127.13,18.64964886]
[1750623765004,7.0824,127.24,127.14,18.64964886]
[1750623765171,32.76727442,127.17,127.14,18.64964886]
[1750623765897,7.0824,127.24,127.14,52.11692328]
[1750623765898,32.76727442,127.19,127.14,52.11692328]
[1750623766105,32.76727442,127.19,127.15,32.76727442]
[1750623766286,6.3924,127.24,127.16,18.64964886]
[1750623766478,32.76727442,127.2,127.16,18.64964886]
[1750623766893,32.76727442,127.19,127.14,0.7]
[1750623767094,32.76727442,127.18,127.15,18.64964886]
[1750623767375,6.3924,127.24,127.15,18.64964886]
[1750623767797,32.76727442,127.18,127.15,18.64964886]
[1750623768196,26.0,127.22,127.13,22.09911174]
[1750623768197,32.76727442,127.16,127.13,22.09911174]
[1750623768511,26.0,127.15,127.13,22.09911174]
[1750623768800,26.0,127.2,127.13,22.09911174]
[1750623768997,32.76727442,127.18,127.13,54.86638616]
[1750623769203,32.76727442,127.18,127.14,18.64964886]
[1750623769577,26.0,127.21,127.14,51.41692328]
[1750623769979,32.76727442,127.17,127.14,18.64964886]
[1750623770185,32.76727442,127.15,127.14,18.64964886]
[1750623772022,26.0,127.19,127.14,18.64964886]
[1750623772315,32.76727442,127.15,127.14,18.64964886]
[1750623773502,26.0,127.21,127.14,18.64964886]
[1750623773685,32.76727442,127.18,127.14,32.76727442]
[1750623773890,6.3924,127.24,127.15,18.64964886]
[1750623773891,32.76727442,127.19,127.15,18.64964886]
[1750623774389,32.76727442,127.16,127.13,18.64964886]
[1750623774693,32.76727442,127.14,127.13,18.64964886]
[1750623775378,32.76727442,127.17,127.13,18.64964886]
[1750623775578,32.76727442,127.17,127.13,51.41692328]
[1750623775782,32.76727442,127.17,127.13,18.64964886]
[1750623775983,32.76727442,127.16,127.13,18.64964886]
[1750623776608,26.0,127.21,127.13,18.64964886]
[1750623776808,32.76727442,127.15,127.13,18.64964886]
[1750623777114,26.0,127.21,127.13,18.64964886]
[1750623777115,32.76727442,127.17,127.13,18.64964886]
[1750623777322,32.76727442,127.17,127.13,49.16213708]
[1750623777989,26.0,127.21,127.13,49.16213708]
[1750623777990,32.76727442,127.15,127.13,49.16213708]
[1750623778593,32.76727442,127.15,127.12,18.64964886]
[1750623778910,32.76727442,127.16,127.12,18.64964886]
[1750623779086,32.76727442,127.15,127.12,43.06294532]
[1750623779287,26.0,127.21,127.12,43.06294532]
[1750623779602,32.76727442,127.16,127.12,43.06294532]
[1750623779806,26.0,127.21,127.12,75.83021974]
[1750623779993,0.69,127.23,127.14,51.41692328]
[1750623780307,32.76727442,127.19,127.15,18.64964886]
[1750623780617,6.3924,127.24,127.14,32.76727442]
[1750623780618,32.76727442,127.24,127.19,18.64964886]
[1750623780922,32.76727442,127.25,127.21,18.64964886]
[1750623781079,6.093,127.29,127.21,18.64964886]
[1750623781080,32.76727442,127.29,127.21,18.64964886]
[1750623781287,32.76727442,127.25,127.2,20.01122306]
[1750623781486,32.76727442,127.26,127.22,37.95783604]
[1750623781703,123.267,127.36,127.26,18.64964886]
[1750623782029,2.3112,127.38,127.27,32.76727442]
[1750623782319,2.3112,127.38,127.26,18.64964886]
[1750623782320,26.0,127.31,127.26,18.64964886]
[1750623782494,32.76727442,127.27,127.24,19.30515225]
[1750623782695,58.76727442,127.25,127.24,19.30515225]
[1750623783020,59.45727442,127.25,127.24,19.30515225]
[1750623783309,32.76727442,127.26,127.24,19.30515225]
[1750623783614,26.69,127.27,127.24,37.95480111]
[1750623783795,32.76727442,127.25,127.24,37.95480111]
[1750623783995,26.69,127.27,127.25,18.64964886]
[1750623784302,32.76727442,127.26,127.25,18.64964886]
[1750623785000,26.0,127.29,127.25,18.64964886]
[1750623785219,32.76727442,127.31,127.27,51.41692328]
[1750623785531,6.783,127.39,127.31,18.64964886]
[1750623785532,6.093,127.39,127.31,18.64964886]
[1750623785711,0.69,127.43,127.34,18.64964886]
[1750623786031,32.76727442,127.37,127.33,18.64964886]
[1750623786216,0.69,127.43,127.33,18.64964886]
[1750623786397,0.69,127.43,127.35,18.64964886]
[1750623786724,0.69,127.43,127.3,18.64964886]
[1750623786725,6.093,127.45,127.36,18.64964886]
[1750623786934,26.0,127.44,127.38,51.41692328]
[1750623787095,1.7820875,127.46,127.35,14.55043476]
[1750623787096,1.7820875,127.46,127.4,18.64964886]
[1750623787298,1.7820875,127.46,127.42,18.64964886]
[1750623787500,34.54936192,127.46,127.42,18.64964886]
[1750623787795,1.7820875,127.46,127.44,18.64964886]
[1750623788428,1.7820875,127.46,127.45,18.64964886]
[1750623788928,32.76727442,127.5,127.46,18.64964886]
[1750623789244,32.76727442,127.48,127.45,18.64964886]
[1750623789424,26.0,127.5,127.45,18.64964886]
[1750623789614,26.0,127.5,127.41,18.64964886]
[1750623789817,32.76727442,127.46,127.41,18.64964886]
[1750623790036,32.76727442,127.46,127.38,0.7]
[1750623790037,32.76727442,127.46,127.43,18.64964886]
[1750623790240,32.13035071,127.48,127.43,50.77999957]
[1750623790535,32.13035071,127.5,127.46,18.64964886]
[1750623790743,26.0,127.52,127.46,50.77999957]
[1750623791038,26.0,127.52,127.42,0.7]
[1750623791039,7.7419,127.57,127.48,18.64964886]
[1750623791423,7.7419,127.57,127.43,18.64964886]
[1750623791629,32.13035071,127.52,127.48,18.64964886]
[1750623791814,32.13035071,127.53,127.48,50.77999957]
[1750623792214,32.13035071,127.51,127.48,18.64964886]
[1750623792416,32.13035071,127.49,127.37,30.5107015]
[1750623792641,32.13035071,127.47,127.42,32.13035071]
[1750623792814,32.13035071,127.49,127.44,32.13035071]
[1750623793013,6.1422,127.57,127.48,50.77999957]
[1750623793239,32.13035071,127.53,127.48,18.64964886]
[1750623793440,6.1422,127.57,127.44,26.0]
[1750623793441,6.1422,127.57,127.47,26.0]
[1750623793641,32.13035071,127.56,127.48,18.64964886]
[1750623793823,32.13035071,127.53,127.48,18.64964886]
[1750623794141,32.13035071,127.49,127.47,18.64964886]
[1750623794436,6.9606401,127.58,127.44,50.77999957]
[1750623794637,32.13035071,127.47,127.44,18.64964886]
[1750623794844,26.0,127.51,127.44,18.64964886]